bitfinex-derivatives/quotes_ETHF0:USTF0_20240923
["timestamp","ask_amount","ask_price","bid_price","bid_amount"]
[1727101796335,0.37469,2668.7,2668.6,0.3747]
[1727101796524,0.37467,2668.9,2668.5,2.5239]
[1727101796725,0.37467,2668.9,2668.8,0.37467]
[1727101796925,0.3747,2668.6,2668.5,2.89861]
[1727101797125,0.3747,2668.6,2668.5,2.89862]
[1727101797334,0.37473,2668.4,2668.3,0.37474]
[1727101797529,0.37475,2668.3,2668.2,0.37475]
[1727101797730,0.37474,2668.4,2668.3,0.37475]
[1727101798731,0.37474,2668.4,2668.3,0.37474]
[1727101799428,0.37476,2668.3,2668.2,0.37476]
[1727101800034,0.37474,2668.4,2668.3,0.37474]
[1727101800335,0.37476,2668.3,2668.2,0.37476]
[1727101800531,0.37475,2668.3,2668.0,2.501]
[1727101800728,0.37475,2668.3,2668.2,0.37476]
[1727101800927,0.37476,2668.2,2668.1,0.37477]
[1727101801127,0.37477,2668.1,2668.0,2.87578]
[1727101801528,1.2669,2668.6,2668.1,0.93694]
[1727101801839,13.8628,2669.0,2668.7,0.37469]
[1727101802041,6.72744,2669.3,2668.3,0.93686]
[1727101802239,0.37463,2669.2,2668.6,0.93677]
[1727101802538,0.37463,2669.2,2669.0,0.37464]
[1727101802736,0.37466,2669.0,2668.7,3.9274]
[1727101802930,6.72744,2669.3,2668.9,0.37465]
[1727101803131,0.37465,2669.0,2668.8,0.37466]
[1727101803335,5.2578,2669.0,2668.5,3.2078]
[1727101803531,5.2578,2669.0,2668.6,0.37469]
[1727101803532,0.37469,2668.7,2668.6,0.37469]
[1727101803735,0.3747,2668.7,2668.6,0.3747]
[1727101803933,5.2578,2669.0,2668.7,0.37469]
[1727101804132,0.37468,2668.9,2668.7,0.37469]
[1727101804443,3.2078,2669.0,2668.9,0.37466]
[1727101804641,0.93649,2669.4,2669.0,0.37464]
[1727101804835,0.37463,2669.2,2669.0,0.37464]
[1727101805028,0.37463,2669.2,2669.1,2.5569]
[1727101806037,1.31119,2669.2,2669.1,1.2479]
[1727101806241,0.37468,2668.8,2668.7,3.2078]
[1727101806434,2.05,2669.1,2668.7,3.2078]
[1727101806741,5.40468,2669.2,2668.7,3.2078]
[1727101806742,0.37462,2669.2,2668.7,3.2078]
[1727101806945,3.58239,2669.5,2669.4,0.37459]
[1727101807143,0.37457,2669.6,2669.1,0.93659]
[1727101807329,0.37457,2669.6,2669.2,1.2825]
[1727101807531,1.2603,2669.7,2669.5,0.37457]
[1727101807837,5.41943,2669.9,2669.5,0.37458]
[1727101807838,0.37457,2669.6,2669.5,0.37458]
[1727101808035,1.2753,2669.9,2669.7,0.37454]
[1727101808239,1.2753,2669.9,2669.3,4.14432]
[1727101808240,1.2709,2670.0,2669.8,0.37454]
[1727101808437,3.2078,2670.5,2670.2,0.37448]
[1727101808642,0.37448,2670.2,2669.9,3.8281]
[1727101808844,0.9361,2670.5,2669.9,3.8281]
[1727101808845,0.37451,2670.0,2669.9,3.8281]
[1727101809242,0.37451,2670.0,2669.9,4.20262]
[1727101809437,0.37451,2670.0,2669.9,3.8281]
[1727101809644,0.3745,2670.1,2669.9,4.20261]
[1727101809837,0.37451,2670.0,2669.9,2.4903]
[1727101810036,0.37453,2669.9,2669.7,0.37454]
[1727101810231,1.2709,2670.3,2669.6,3.2078]
[1727101810232,3.3209,2670.3,2669.6,3.2078]
[1727101810437,0.37448,2670.3,2670.1,0.37449]
[1727101810942,0.37447,2670.3,2669.7,0.93638]
[1727101811238,3.58224,2670.5,2669.9,4.14411]
[1727101811443,3.2078,2670.5,2670.4,0.37445]
[1727101811632,3.58224,2670.5,2670.3,0.37446]
[1727101812040,3.2078,2670.5,2670.2,0.37448]
[1727101812242,3.2078,2670.5,2670.0,1.3399]
[1727101812446,0.37447,2670.3,2670.1,0.37449]
[1727101812639,3.2078,2670.5,2670.0,1.7144]
[1727101812640,0.37448,2670.2,2670.0,1.7144]
[1727101812839,0.37449,2670.2,2670.0,1.3399]
[1727101813042,0.37449,2670.2,2669.6,4.5201]
[1727101813043,0.37455,2669.7,2669.6,4.5201]
[1727101813240,0.37456,2669.6,2669.5,1.2078]
[1727101813440,5.7278,2669.8,2669.3,1.3399]
[1727101813946,0.37455,2669.7,2669.3,1.3399]
[1727101814140,0.37454,2669.8,2669.3,1.3399]
[1727101814342,2.2676,2670.0,2669.4,1.2893]
[1727101814539,0.37452,2670.0,2669.4,1.2893]
[1727101814742,0.37456,2669.7,2669.4,1.66388]
[1727101814950,0.37456,2669.7,2669.4,4.87168]
[1727101815239,0.93628,2670.0,2669.4,4.4971]
[1727101815240,0.37457,2669.6,2669.4,4.4971]
[1727101815440,3.2078,2669.9,2669.1,3.2078]
[1727101815441,2.52,2669.8,2669.1,3.2078]
[1727101815650,2.52,2669.8,2669.2,0.37462]
[1727101815651,0.37459,2669.4,2669.2,0.37462]
[1727101815847,0.37461,2669.3,2669.1,4.4191]
[1727101816156,0.93642,2669.6,2669.1,4.4191]
[1727101816157,0.3746,2669.4,2669.1,4.79373]
[1727101816446,0.37461,2669.3,2669.1,4.79373]
[1727101816648,1.2268,2669.6,2669.2,0.37462]
[1727101816844,0.3746,2669.4,2669.1,4.79373]
[1727101817047,1.2268,2669.6,2669.1,4.4191]
[1727101817237,1.2268,2669.6,2669.1,3.2078]
[1727101817550,0.37463,2669.1,2668.9,3.58246]
[1727101817941,0.37463,2669.2,2669.0,3.7464]
[1727101818142,0.37461,2669.3,2668.9,3.2078]
[1727101818448,2.16322,2669.6,2668.9,3.2078]
[1727101818449,0.93649,2669.4,2668.9,3.2078]
[1727101818650,0.37462,2669.2,2669.0,0.37465]
[1727101818947,0.37465,2669.1,2668.9,3.58246]
[1727101819149,0.37463,2669.2,2669.0,0.37465]
[1727101819550,3.2078,2669.7,2668.9,3.2078]
[1727101819741,3.2078,2670.0,2668.9,3.2078]
[1727101819941,0.37461,2669.3,2669.1,0.37462]
[1727101820145,0.93643,2669.6,2669.3,0.37461]
[1727101820346,0.93643,2669.6,2668.9,3.2078]
[1727101820547,0.3746,2669.4,2669.2,0.37461]
[1727101820854,0.37461,2669.3,2669.2,0.37462]
[1727101821351,0.37461,2669.3,2668.9,3.2078]
[1727101821557,0.37461,2669.3,2668.9,6.9542]
[1727101821845,0.93646,2669.5,2669.3,0.37461]
[1727101821846,0.3746,2669.4,2669.3,0.37461]
[1727101822042,0.37459,2669.5,2669.4,0.37459]
[1727101822444,0.37453,2669.9,2669.8,0.37453]
[1727101822639,0.37451,2670.0,2669.9,0.37451]
[1727101822841,0.93628,2670.0,2669.6,1.272]
[1727101823048,0.3745,2670.1,2670.0,0.3745]
[1727101823347,11.9445,2670.5,2669.8,3.2078]
[1727101823348,13.2144,2670.5,2669.8,3.2078]
[1727101823549,13.2144,2670.5,2670.0,0.3745]
[1727101823550,0.37451,2670.1,2670.0,0.3745]
[1727101823849,0.37446,2670.4,2670.3,0.37446]
[1727101824051,0.93605,2670.7,2670.4,0.37444]
[1727101824254,0.93605,2670.7,2669.8,0.93633]
[1727101824255,0.93621,2670.3,2669.8,3.2078]
[1727101824462,0.37452,2669.9,2669.8,3.58233]
[1727101824847,0.37452,2669.9,2669.6,1.272]
[1727101824848,0.9363,2670.0,2669.6,1.272]
[1727101825055,0.9363,2670.0,2669.7,0.37454]
[1727101825056,0.37452,2669.9,2669.7,0.37454]
[1727101825255,0.9363,2670.0,2669.7,0.37454]
[1727101825256,0.37454,2669.8,2669.7,0.37454]
[1727101825748,0.37455,2669.7,2669.6,1.272]
[1727101825952,3.2078,2670.1,2669.6,1.272]
[1727101826151,0.37454,2669.8,2669.6,1.272]
[1727101826356,4.14406,2670.1,2669.7,0.37455]
[1727101826557,4.14406,2670.1,2669.8,0.37453]
[1727101826749,6.01757,2670.4,2669.7,3.2078]
[1727101826750,0.93621,2670.2,2669.7,3.2078]
[1727101826947,0.37451,2670.0,2669.7,3.2078]
[1727101827254,0.37451,2670.0,2669.9,0.37452]
[1727101827756,4.14402,2670.2,2669.9,0.37451]
[1727101827947,0.37448,2670.3,2669.7,3.2078]
[1727101828148,3.54923,2670.5,2670.2,0.37447]
[1727101828348,6.66385,2670.7,2669.9,0.93631]
[1727101828659,0.93607,2670.6,2670.0,2.5142]
[1727101828849,0.37446,2670.4,2670.3,0.37446]
[1727101829044,0.37445,2670.4,2670.3,0.37446]
[1727101829758,0.37444,2670.5,2670.4,0.37445]
[1727101830358,0.37444,2670.5,2670.0,3.45046]
[1727101830359,0.37448,2670.3,2670.2,0.37448]
[1727101830559,5.7278,2670.7,2670.0,5.722]
[1727101830560,0.37448,2670.2,2670.1,0.37448]
[1727101831052,0.37446,2670.4,2670.3,0.37446]
[1727101832257,0.37449,2670.2,2670.1,0.37448]
[1727101832957,0.37449,2670.2,2670.0,5.722]
[1727101832958,0.37448,2670.3,2670.2,0.37447]
[1727101833472,0.37454,2669.9,2669.6,1.272]
[1727101833654,0.37454,2669.9,2669.8,0.37453]
[1727101833853,0.37455,2669.7,2669.6,1.272]
[1727101834049,0.93638,2669.7,2669.2,1.2781]
[1727101834360,0.37459,2669.5,2669.4,0.37459]
[1727101834660,0.93638,2669.7,2669.2,1.2781]
[1727101834661,0.3746,2669.4,2669.2,1.2781]
[1727101834848,0.37459,2669.5,2669.2,1.2781]
[1727101835048,0.37458,2669.6,2669.2,1.2781]
[1727101835257,1.319,2669.9,2669.8,0.37454]
[1727101835457,3.2078,2670.3,2669.6,0.93642]
[1727101835758,0.37449,2670.1,2670.0,0.3745]
[1727101836361,1.2675,2670.5,2670.0,3.7456]
[1727101836362,2.20362,2670.5,2670.0,3.7456]
[1727101836547,2.20362,2670.5,2669.8,3.2078]
[1727101836548,0.3745,2670.1,2669.8,3.2078]
[1727101837157,0.3745,2670.1,2670.0,0.37451]
[1727101837758,0.37451,2670.0,2669.9,0.37452]
[1727101837951,0.37451,2670.0,2669.7,2.5046]
[1727101837952,0.93621,2670.2,2669.7,2.5046]
[1727101838157,0.3745,2670.1,2669.8,0.37454]
[1727101838463,0.37448,2670.2,2670.0,0.3745]
[1727101838658,3.58227,2670.3,2670.1,0.37449]
[1727101838865,0.37447,2670.3,2670.1,0.37449]
[1727101839062,1.2675,2670.5,2670.1,0.37449]
[1727101839063,4.4753,2670.5,2670.1,0.37449]
[1727101839359,0.37451,2670.0,2669.9,0.37452]
[1727101839558,4.4753,2670.5,2669.8,3.2078]
[1727101839559,3.2078,2670.2,2669.8,3.58233]
[1727101839760,3.2078,2670.2,2670.1,0.37449]
[1727101839956,0.9361,2670.6,2670.4,0.37445]
[1727101839957,0.37443,2670.6,2670.4,0.37445]
[1727101840261,0.936,2670.8,2670.4,0.37445]
[1727101840462,0.37447,2670.3,2670.2,1.3203]
[1727101840653,0.37447,2670.3,2670.1,0.37449]
[1727101840851,0.37447,2670.3,2670.2,0.37447]
[1727101841259,1.2135,2670.5,2670.0,0.3745]
[1727101841260,0.37449,2670.2,2670.0,0.3745]
[1727101841461,0.37447,2670.3,2670.1,0.37449]
[1727101841652,0.37446,2670.4,2670.2,0.37447]
[1727101842059,0.37447,2670.3,2670.2,0.37447]
[1727101842965,0.37446,2670.4,2670.2,0.37447]
[1727101843162,0.37447,2670.3,2669.9,1.2489]
[1727101843362,0.37446,2670.4,2670.2,0.37447]
[1727101843661,0.37445,2670.5,2669.9,2.18519]
[1727101843867,0.93601,2670.8,2670.3,0.37446]
[1727101843868,0.37446,2670.4,2670.3,0.37446]
[1727101844067,0.37446,2670.4,2669.9,2.18519]
[1727101844068,0.37447,2670.3,2670.2,0.37447]
[1727101844457,0.37447,2670.3,2670.2,4.11927]
[1727101844659,0.37444,2670.6,2670.5,0.37444]
[1727101844859,0.37445,2670.4,2670.3,1.69575]
[1727101845055,0.37445,2670.4,2670.3,1.3213]
[1727101845571,2.14412,2670.8,2670.3,1.3213]
[1727101845772,2.14411,2670.8,2670.3,1.3213]
[1727101845959,2.14411,2670.8,2670.5,0.37443]
[1727101846263,3.2078,2670.7,2670.3,1.3213]
[1727101846565,0.37444,2670.5,2670.4,0.37444]
[1727101846771,0.37445,2670.4,2670.3,1.69576]
[1727101847065,0.37444,2670.5,2670.4,0.37444]
[1727101847264,3.2078,2670.7,2670.3,1.3213]
[1727101847265,0.37445,2670.4,2670.3,1.3213]
[1727101847466,0.37445,2670.4,2670.3,1.69577]
[1727101847666,0.37451,2670.0,2669.9,1.2489]
[1727101848061,0.37452,2669.9,2669.8,3.2078]
[1727101848473,2.42452,2669.9,2669.8,3.2078]
[1727101848663,2.05,2670.2,2669.8,3.2078]
[1727101848966,2.42449,2670.2,2669.9,0.37451]
[1727101849166,2.42446,2670.4,2669.8,6.9534]
[1727101849464,5.63223,2670.6,2669.9,2.6497]
[1727101849769,2.05,2670.6,2669.9,2.6497]
[1727101849965,2.05,2670.6,2670.1,0.37449]
[1727101850166,0.37448,2670.3,2670.1,0.37449]
[1727101850471,0.37448,2670.2,2670.0,0.3745]
[1727101850862,0.37446,2670.4,2670.1,0.37449]
[1727101851057,0.37447,2670.3,2670.1,1.60699]
[1727101851365,3.2078,2670.7,2670.1,1.2325]
[1727101851572,0.37443,2670.6,2670.1,1.2325]
[1727101851765,0.37443,2670.6,2670.4,0.37445]
[1727101852064,1.2246,2670.9,2670.1,1.2325]
[1727101852269,0.3744,2670.8,2670.6,0.37442]
[1727101852470,0.37438,2671.0,2670.8,0.3744]
[1727101852663,0.37438,2671.0,2670.8,0.37439]
[1727101852964,5.7123,2671.3,2670.5,2.4845]
[1727101853166,0.93569,2671.7,2671.2,0.37434]
[1727101853396,0.37432,2671.4,2671.2,0.37433]
[1727101853575,0.37435,2671.2,2671.0,0.37436]
[1727101853766,3.2078,2671.5,2671.1,0.37435]
[1727101853767,0.37434,2671.3,2671.1,0.37435]
[1727101854163,0.37435,2671.2,2671.0,0.37436]
[1727101854562,0.37436,2671.1,2670.9,0.37438]
[1727101854867,3.2078,2671.5,2670.7,3.2078]
[1727101855074,0.37434,2671.2,2670.7,3.2078]
[1727101855272,3.2078,2671.5,2670.7,3.2078]
[1727101855768,2.17594,2671.6,2670.7,3.2078]
[1727101855769,0.37438,2671.0,2670.7,3.2078]
[1727101856069,0.37436,2671.1,2670.8,0.37439]
[1727101856365,6.66359,2671.4,2670.7,3.2078]
[1727101856584,0.37433,2671.3,2670.7,3.2078]
[1727101856766,0.93582,2671.3,2670.7,3.2078]
[1727101857160,0.93582,2671.3,2670.8,0.37439]
[1727101857365,0.37437,2671.0,2670.7,3.5822]
[1727101857666,0.37437,2671.0,2670.7,3.2078]
[1727101857862,0.37437,2671.0,2670.7,6.9518]
[1727101858170,0.37438,2670.9,2670.7,3.2078]
[1727101858362,0.37438,2671.0,2670.7,3.2078]
[1727101858779,0.37438,2671.0,2670.7,6.9518]
[1727101859074,0.3744,2670.8,2670.7,3.2078]
[1727101859464,0.37441,2670.7,2670.6,1.2967]
[1727101860272,2.14774,2671.0,2670.6,5.0415]
[1727101860576,3.2078,2671.2,2670.6,1.2967]
[1727101860871,0.93593,2671.0,2670.6,1.2967]
[1727101861170,0.37441,2670.7,2670.6,1.2967]
[1727101861368,4.14373,2671.0,2670.6,1.2967]
[1727101861672,0.93593,2671.0,2670.6,1.2967]
[1727101861873,0.3744,2670.8,2670.6,1.2967]
[1727101862061,0.3744,2670.8,2670.6,1.67111]
[1727101862967,0.3744,2670.8,2670.7,0.37441]
[1727101863365,0.93593,2671.0,2670.6,1.67112]
[1727101863366,0.37441,2670.7,2670.6,1.67112]
[1727101863561,0.93593,2671.0,2670.7,0.37441]
[1727101863562,0.3744,2670.8,2670.7,0.37441]
[1727101864274,0.37441,2670.7,2670.6,1.67111]
[1727101864476,0.93593,2671.0,2670.6,1.2967]
[1727101864477,0.3744,2670.8,2670.6,1.2967]
[1727101864774,0.37441,2670.8,2670.6,1.2967]
[1727101865072,0.93593,2671.0,2670.6,1.2967]
[1727101865272,3.2078,2671.1,2670.8,3.2078]
[1727101865273,0.37438,2670.9,2670.8,3.2078]
[1727101865866,0.37438,2670.9,2670.6,1.2967]
[1727101866175,0.37441,2670.7,2670.6,1.2967]
[1727101866573,0.37441,2670.7,2670.6,5.0415]
[1727101866972,0.37441,2670.7,2670.6,1.2967]
[1727101867769,0.37441,2670.7,2670.6,1.67112]
[1727101868170,0.37441,2670.7,2670.6,1.2967]
[1727101868773,1.31049,2670.6,2670.5,3.2078]
[1727101868980,1.31049,2670.6,2669.8,2.21478227]
[1727101868981,0.37452,2669.9,2669.8,2.21478227]
[1727101869173,0.37454,2669.8,2669.7,1.2262]
[1727101869373,1.31089,2669.8,2669.7,1.2262]
[1727101869573,0.37457,2669.6,2669.5,0.37457]
[1727101869774,1.2459,2669.9,2669.4,1.2569]
[1727101869975,0.37453,2669.9,2669.7,0.37454]
[1727101870177,0.37454,2669.8,2669.7,0.37454]
[1727101870377,0.37455,2669.7,2669.6,0.37455]
[1727101870880,0.37456,2669.6,2669.5,3.58237]
[1727101871271,0.37454,2669.8,2669.5,12.9534]
[1727101871581,0.93626,2670.1,2669.5,12.9534]
[1727101871582,0.37449,2670.2,2670.1,0.37449]
[1727101871972,0.37449,2670.1,2670.0,0.3745]
[1727101872478,0.37449,2670.1,2670.0,4.12011]
[1727101872887,0.93635,2669.8,2669.5,4.16568227]
[1727101873072,0.37456,2669.6,2669.5,3.2078]
[1727101873273,0.37456,2669.7,2669.6,0.37455]
[1727101873980,0.37456,2669.7,2669.6,3.7456]
[1727101874286,0.37456,2669.7,2669.6,4.12016]
[1727101874581,0.37456,2669.6,2669.5,3.58237]
[1727101874780,0.37456,2669.6,2669.5,3.2078]
[1727101875075,1.284,2670.0,2669.4,1.2569]
[1727101875076,0.37458,2669.5,2669.4,1.2569]
[1727101875284,0.37458,2669.5,2669.4,5.0033]
[1727101875485,0.37458,2669.5,2669.4,5.37789]
[1727101875981,0.37458,2669.5,2669.4,5.0033]
[1727101876180,0.37458,2669.5,2669.4,1.63149]
[1727101876377,0.37458,2669.5,2669.4,5.37789]
[1727101876578,2.05,2669.6,2669.0,0.37464]
[1727101876788,0.37468,2668.8,2668.7,0.95788227]
[1727101877083,2.05,2668.9,2668.5,2.6244]
[1727101877287,0.37465,2669.0,2668.7,3.2078]
[1727101877582,2.05,2669.1,2668.7,3.2078]
[1727101877583,2.05,2669.1,2668.7,0.37468]
[1727101877783,2.05,2669.1,2668.6,0.3747]
[1727101877971,0.3747,2668.7,2668.5,2.99911]
[1727101878190,0.3747,2668.7,2668.5,2.6244]
[1727101878376,5.42813,2669.0,2668.5,2.99912]
[1727101878578,3.2078,2668.6,2668.2,0.65013805]
[1727101878778,1.2837,2668.5,2668.3,0.37475]
[1727101878985,1.65842,2668.5,2668.2,1.02488805]
[1727101879484,0.37473,2668.4,2668.2,0.65013805]
[1727101879674,1.2837,2668.5,2668.4,0.37473]
[1727101879871,3.2078,2668.6,2668.2,0.65013805]
[1727101880076,0.37475,2668.3,2668.2,0.65013805]
[1727101880282,1.31162,2668.3,2668.2,0.65013805]
[1727101880473,8.26742,2668.3,2668.2,0.65013805]
[1727101880676,14.26742,2668.3,2668.2,0.65013805]
[1727101880880,10.51942,2668.3,2668.2,0.26213805]
[1727101881080,14.26742,2668.3,2668.2,0.26213805]
[1727101881275,14.26742,2668.3,2667.4,3.2958]
[1727101881276,13.33055,2668.3,2667.4,3.2958]
[1727101881485,0.37485,2667.6,2667.4,3.2078]
[1727101881680,0.37488,2667.4,2667.1,3.58271]
[1727101881884,0.37487,2667.5,2667.1,3.58271]
[1727101882084,0.37487,2667.4,2667.1,0.37491]
[1727101882288,0.37486,2667.5,2667.2,0.3749]
[1727101882585,0.37485,2667.6,2667.3,0.37488]
[1727101882784,0.37485,2667.6,2667.1,3.2078]
[1727101882984,0.37486,2667.5,2667.2,0.37489]
[1727101883182,0.37485,2667.6,2667.3,0.37488]
[1727101883586,0.37486,2667.5,2667.2,3.58269]
[1727101884087,3.2078,2668.0,2667.2,3.2078]
[1727101884288,0.37482,2667.8,2667.5,0.37485]
[1727101884530,0.37481,2667.9,2667.6,0.37484]
[1727101884883,0.37482,2667.8,2667.5,0.37485]
[1727101885191,4.14478,2668.0,2667.4,0.37486]
[1727101885488,9.0714,2668.2,2667.2,3.2078]
[1727101885489,0.37481,2667.9,2667.2,3.2078]
[1727101885682,10.00831,2668.2,2667.2,3.2078]
[1727101885886,0.93694,2668.1,2667.6,0.37483]
[1727101886281,0.93694,2668.1,2667.7,0.37483]
[1727101886282,0.37481,2667.9,2667.7,0.37483]
[1727101886489,0.37484,2667.7,2667.5,0.37485]
[1727101886683,4.14478,2668.0,2667.4,0.37487]
[1727101887085,0.37485,2667.6,2667.3,0.37488]
[1727101887485,0.37482,2667.8,2667.6,0.37484]
[1727101887691,0.37481,2667.9,2667.7,0.37483]
[1727101887992,0.37481,2667.9,2667.6,0.37483]
[1727101888188,0.37482,2667.8,2667.6,0.37483]
[1727101888886,0.37483,2667.8,2667.5,0.37485]
[1727101889088,0.93698,2668.0,2667.4,0.37487]
[1727101889392,0.37483,2667.8,2667.6,0.37484]
[1727101890183,0.93701,2667.9,2667.2,3.2078]
[1727101890384,0.37487,2667.4,2667.2,3.58269]
[1727101890594,0.93712,2667.6,2667.2,3.58269]
[1727101890595,0.37489,2667.3,2667.2,3.2078]
[1727101890987,3.52972,2667.6,2666.9,2.5422]
[1727101891295,0.37494,2666.9,2666.8,3.2078]
[1727101891485,0.37492,2667.1,2666.9,0.37494]
[1727101891682,3.52975,2667.6,2667.2,0.3749]
[1727101891683,2.5926,2667.6,2667.2,0.3749]
[1727101891888,2.5926,2667.6,2667.1,3.2078]
[1727101891889,2.27274,2667.6,2667.1,3.2078]
[1727101892087,0.37489,2667.3,2667.1,0.37491]
[1727101892299,1.3356,2667.6,2667.1,0.37491]
[1727101892300,0.37488,2667.4,2667.2,0.3749]
[1727101892489,0.37487,2667.5,2667.2,0.3749]
[1727101892895,0.93716,2667.5,2667.1,3.2078]
[1727101893196,0.3749,2667.2,2667.1,3.2078]
[1727101893589,2.52,2667.5,2667.1,3.2078]
[1727101893792,0.37489,2667.3,2667.1,3.58271]
[1727101894096,1.71045,2667.6,2667.4,0.37487]
[1727101894392,1.3356,2667.6,2667.5,0.37486]
[1727101894598,0.37485,2667.6,2667.4,0.37487]
[1727101894784,0.37484,2667.7,2667.4,0.37486]
[1727101895102,5.7278,2667.8,2667.4,0.37486]
[1727101895103,0.37485,2667.6,2667.4,0.37486]
[1727101895285,5.7278,2667.8,2667.2,2.5874]
[1727101895482,0.37489,2667.3,2667.2,2.5874]
[1727101895891,0.37488,2667.4,2667.2,2.9623]
[1727101896088,0.37489,2667.3,2667.1,3.58271]
[1727101896282,0.37488,2667.4,2667.2,0.37489]
[1727101896688,0.3749,2667.2,2667.1,3.2078]
[1727101897196,0.37495,2666.9,2666.7,5.8625]
[1727101897387,0.37494,2667.0,2666.7,6.23747]
[1727101897692,0.37495,2666.9,2666.7,5.8625]
[1727101898590,0.37498,2666.7,2666.5,1.2601]
[1727101898891,0.37496,2666.8,2666.5,1.2601]
[1727101899190,0.37499,2666.6,2666.5,1.2601]
[1727101899391,0.37498,2666.7,2666.5,1.2601]
[1727101899589,12.1288,2667.2,2666.5,1.2601]
[1727101899793,6.401,2667.2,2666.6,3.2078]
[1727101899991,0.37485,2667.6,2666.9,4.14514]
[1727101900195,2.52,2667.8,2667.0,1.3331]
[1727101900196,0.37487,2667.5,2667.0,1.3331]
[1727101900392,0.37488,2667.4,2667.2,0.37489]
[1727101900696,0.37491,2667.2,2667.0,1.70803]
[1727101900894,3.45716,2667.5,2667.0,1.3331]
[1727101901195,3.45728,2667.2,2666.7,0.37497]
[1727101901396,3.45728,2667.2,2666.6,3.2078]
[1727101901397,0.37497,2666.7,2666.6,3.2078]
[1727101901793,0.37501,2666.5,2666.3,4.91752]
[1727101902092,0.37501,2666.5,2666.0,0.37507]
[1727101902093,0.37505,2666.2,2666.0,0.37507]
[1727101902286,2.52,2666.5,2666.0,0.37506]
[1727101902287,0.93754,2666.4,2666.0,0.37506]
[1727101902600,0.37505,2666.2,2666.0,0.37506]
[1727101902903,0.37505,2666.2,2665.9,0.37507]
[1727101903397,0.37505,2666.2,2666.0,0.37506]
[1727101903595,1.3548,2666.4,2665.7,2.6548]
[1727101903596,2.29236,2666.4,2665.7,2.6548]
[1727101903797,0.93758,2666.3,2665.7,2.6548]
[1727101904094,2.89505,2666.2,2666.0,0.37507]
[1727101904293,0.37506,2666.1,2665.9,0.37508]
[1727101904891,0.37506,2666.1,2665.8,0.37509]
[1727101905091,0.37506,2666.1,2665.9,0.37508]
[1727101905896,0.37504,2666.3,2666.0,0.37507]
[1727101906096,1.3548,2666.4,2666.0,0.37506]
[1727101906300,2.52,2666.5,2666.2,0.37504]
[1727101906592,2.52,2666.5,2665.9,3.2078]
[1727101906593,3.2078,2666.6,2666.5,0.375]
[1727101906793,3.8368,2666.8,2665.7,2.6548]
[1727101906794,3.8368,2666.8,2666.2,3.2078]
[1727101907010,5.7278,2667.2,2666.4,0.93753]
[1727101907194,0.37498,2666.7,2666.5,0.37499]
[1727101907796,0.37499,2666.6,2666.3,7.0906]
[1727101907996,2.52,2666.8,2666.7,0.37497]
[1727101908296,0.37497,2666.7,2666.3,7.0906]
[1727101908891,2.89497,2666.8,2666.6,0.37498]
[1727101909093,0.37495,2666.9,2666.8,0.37496]
[1727101909396,0.37495,2666.9,2666.4,0.93753]
[1727101909397,0.37492,2667.1,2666.9,0.37494]
[1727101909599,5.43465,2667.3,2666.6,3.2078]
[1727101909600,1.2896,2667.3,2666.6,3.2078]
[1727101909897,1.66449,2667.3,2667.2,0.3749]
[1727101910102,0.37491,2667.2,2666.9,3.2078]
[1727101910293,0.37491,2667.2,2667.0,0.37492]
[1727101910491,0.37491,2667.2,2667.1,0.37492]
[1727101910700,0.37492,2667.1,2667.0,0.37492]
[1727101911000,0.37493,2667.0,2666.9,4.5072]
[1727101911193,0.37496,2666.8,2666.7,0.37497]
[1727101911390,0.37494,2666.9,2666.8,0.37495]
[1727101911795,0.37496,2666.8,2666.7,0.37496]
[1727101911995,0.37496,2666.8,2666.6,3.2078]
[1727101911996,3.8856,2667.2,2666.9,0.37493]
[1727101912198,3.8856,2667.2,2666.6,4.14526]
[1727101912395,0.37494,2667.0,2666.6,4.14526]
[1727101912626,0.37493,2667.1,2666.9,0.37493]
[1727101912896,0.37495,2666.9,2666.8,0.37495]
[1727101913404,4.82288,2667.2,2666.6,3.2078]
[1727101913700,4.82288,2667.2,2666.9,0.37494]
[1727101913701,0.37493,2667.0,2666.9,0.37494]
[1727101914096,4.12453,2667.0,2666.9,0.37494]
[1727101914512,4.12453,2667.0,2666.8,0.37495]
[1727101914513,0.37495,2666.9,2666.8,0.37495]
[1727101914799,0.37494,2667.0,2666.9,0.37494]
[1727101915003,4.82288,2667.2,2666.8,0.37495]
[1727101915202,0.37494,2666.9,2666.8,0.37495]
[1727101915500,0.93735,2667.0,2666.6,3.2078]
[1727101915693,0.93735,2667.0,2666.7,0.37497]
[1727101915895,0.37495,2666.9,2666.8,0.37495]
[1727101916799,4.82288,2667.2,2666.6,3.2078]
[1727101917002,4.82288,2667.2,2666.8,0.37494]
[1727101917303,0.37494,2666.9,2666.8,0.37494]
[1727101917692,0.37497,2666.7,2666.6,3.2078]
[1727101918097,4.12537,2666.7,2666.6,3.2078]
[1727101918496,5.39097,2666.7,2666.6,3.2078]
[1727101918700,5.39097,2666.7,2666.0,3.2078]
[1727101918701,0.93752,2666.5,2666.0,3.2078]
[1727101918908,0.37506,2666.1,2666.0,3.58286]
[1727101919210,0.37506,2666.1,2666.0,3.58287]
[1727101919396,0.37505,2666.2,2666.0,3.58286]
[1727101919590,2.52,2666.3,2666.0,3.2078]
[1727101919795,2.52,2666.3,2666.2,0.37504]